fUST/lending_fUST_20250605
["ID","MTS","AMOUNT","RATE_DAILY","PERIOD"]
[364504513,1749123052124,-1000.0,0.00022727,2]
[364504515,1749123052134,-1199.67180559,0.00022728,7]
[364504517,1749123052148,-973.91,0.00022739,2]
[364504520,1749123052158,-1504.93,0.00022739,2]
[364504521,1749123052167,-1379.82,0.00022739,2]
[364504523,1749123052177,-1075.38,0.00022739,2]
[364504525,1749123052186,-1034.38,0.00022739,2]
[364504527,1749123052196,-440.0,0.00022739,2]
[364504529,1749123052206,-440.0,0.00022739,2]
[364504531,1749123052218,-440.0,0.00022739,2]
[364504533,1749123052229,-540.44,0.00022739,2]
[364504535,1749123052238,-671.45,0.00022739,2]
[364504537,1749123052247,-1114.0,0.00022739,2]
[364504539,1749123052256,-440.0,0.00022739,2]
[364504541,1749123052266,-570.2,0.00022739,2]
[364504543,1749123052275,-544.21,0.00022739,2]
[364504545,1749123052284,-1102.8,0.00022739,2]
[364504547,1749123052294,-956.72,0.00022739,2]
[364504549,1749123052303,-1136.28,0.00022739,2]
[364504551,1749123052313,-1302.13665249,0.00022791,2]
[364504553,1749123052322,-1438.97473954,0.00022791,2]
[364504555,1749123052332,-1500.0,0.00022791,2]
[364504557,1749123052341,-2838.53603338,0.00022799,3]
[364504559,1749123052351,-15167.0,0.000228,2]
[364504561,1749123052360,-2105.31746055,0.00022816,2]
[364504564,1749123052372,-500.0,0.00022885,2]
[364504565,1749123052382,-500.0,0.00022889,2]
[364504567,1749123052392,-500.0,0.000229,2]
[364504570,1749123052402,-500.0,0.00022901,2]
[364504571,1749123052411,-500.0,0.00022965,2]
[364504573,1749123052420,-1199.67180559,0.00022969,8]
[364504575,1749123052431,-2725.67,0.00023,2]
[364504577,1749123052440,-1000.0,0.00023,23]
[364504579,1749123052450,-3502.48,0.00023,7]
[364504581,1749123052460,-8000.0,0.00023,2]
[364504583,1749123052470,-151.0,0.00023,8]
[364504585,1749123052479,-9376.19877173,0.00023,2]
[364504587,1749123052491,-284.78016519,0.00023,2]
[364504594,1749123052549,-440.0,0.00018356,2]
[364504596,1749123052558,-440.0,0.00018356,2]
[364504598,1749123052568,-272.53,0.00018904,2]
[364504600,1749123052578,-361.7699998,0.00020547,2]
[364513709,1749123434651,254.788844,0.00013699,2]
[364513711,1749123481181,-2784.14357052,0.00016206,2]
[364513712,1749123481203,-2215.85642948,0.00016596,2]
[364513722,1749123535934,-300.0,0.00016595,2]
[364513723,1749123535965,-4700.0,0.00016596,2]
[364513750,1749124232259,-300.0,0.00016243,2]
[364513751,1749124232269,-300.0,0.00016243,2]
[364513752,1749124232279,-300.0,0.00016243,2]
[364513753,1749124232288,-300.0,0.00016243,2]
[364513754,1749124232297,-1134.49312452,0.00016244,2]
[364513794,1749124238327,-22950.27748688,0.00016244,2]
[364513796,1749124238336,-2882.45101402,0.00016596,2]
[364513798,1749124238346,-191.10992413,0.00017085,2]
[364513800,1749124238355,-175.09909599,0.00017173,2]
[364513802,1749124238364,-35889.704512,0.00017183,2]
[364513804,1749124238374,-1438.53,0.0001721,2]
[364513806,1749124238385,-12374.4039831,0.00017424,2]
[364513808,1749124238395,-1571.84447093,0.00017424,2]
[364513810,1749124238404,-236.0,0.00017754,2]
[364513812,1749124238413,-1210.11014709,0.000179,2]
[364513814,1749124238422,-191.10992408,0.00018095,2]
[364513816,1749124238432,-1210.1101469,0.00018141,2]
[364513818,1749124238441,-160.0,0.00018347,2]
[364513820,1749124238450,-440.0,0.00018356,2]
[364513822,1749124238460,-260.0,0.00018356,2]
[364513824,1749124238470,-157.24965494,0.00018356,2]
[364513826,1749124238479,-440.0,0.00018356,2]
[364513828,1749124238489,-440.0,0.00018356,2]
[364513830,1749124238498,-441.21475966,0.00018356,2]
[364513832,1749124238507,-395.60490511,0.00018356,2]
[364513834,1749124238517,-351.99756612,0.00018356,2]
[364513836,1749124238526,-440.0,0.00018356,2]
[364513838,1749124238535,-440.0,0.00018356,2]
[364513840,1749124238544,-430.0,0.00018356,2]
[364513842,1749124238557,-440.0,0.00018356,2]
[364513844,1749124238567,-299.70809379,0.00018356,2]
[364513846,1749124238577,-440.0,0.00018356,2]
[364513848,1749124238587,-440.0,0.00018356,2]
[364513850,1749124238597,-440.0,0.00018356,2]
[364513852,1749124238607,-440.0,0.00018356,2]
[364513854,1749124238616,-411.56699266,0.00018356,2]
[364513856,1749124238625,-402.55146921,0.00018356,2]
[364513858,1749124238637,-440.0,0.00018356,2]
[364513860,1749124238646,-430.0,0.00018356,2]
[364513862,1749124238656,-440.0,0.00018356,2]
[364513864,1749124238665,-440.0,0.00018356,2]
[364513866,1749124238674,-440.0,0.00018356,2]
[364513868,1749124238684,-440.0,0.00018356,2]
[364513870,1749124238693,-430.0,0.00018356,2]
[364513872,1749124238702,-549.12104373,0.00018356,2]
[364513874,1749124238711,-440.0,0.00018356,2]
[364513876,1749124238721,-440.0,0.00018356,2]
[364513878,1749124238731,-389.73771962,0.00018356,2]
[364513880,1749124238740,-440.0,0.00018356,2]
[364513882,1749124238750,-440.0,0.00018356,2]
[364513884,1749124238759,-1025.84,0.00018356,2]
[364513886,1749124238768,-430.0,0.00018356,2]
[364513888,1749124238777,-196.29704414,0.00018356,2]
[364513890,1749124238786,-440.0,0.00018356,2]
[364513892,1749124238795,-440.0,0.00018356,2]
[364513894,1749124238804,-440.0,0.00018356,2]
[364513896,1749124238813,-470.0,0.00018356,2]
[364513898,1749124238822,-370.0,0.00018356,2]
[364513899,1749124238830,-430.0,0.00018356,2]
[364513901,1749124238839,-440.0,0.00018356,2]
[364513903,1749124238849,-430.0,0.00018356,2]
[364513905,1749124238858,-440.0,0.00018356,2]
[364513907,1749124238867,-440.0,0.00018356,2]
[364513910,1749124238880,-430.0,0.00018356,2]
[364513911,1749124238890,-440.0,0.00018356,2]
[364513913,1749124238899,-440.0,0.00018356,2]
[364513915,1749124238908,-440.0,0.00018356,2]
[364513917,1749124238918,-440.0,0.00018356,2]
[364513919,1749124238927,-440.0,0.00018356,2]
[364513921,1749124238937,-1162.85,0.00018356,2]
[364513923,1749124238946,-440.0,0.00018356,2]
[364513925,1749124238956,-370.0,0.00018356,2]
[364513927,1749124238966,-440.0,0.00018356,2]
[364513929,1749124238976,-390.0,0.00018356,2]
[364513931,1749124238985,-440.0,0.00018356,2]
[364513933,1749124238994,-440.0,0.00018356,2]
[364513935,1749124239006,-476.57333338,0.00018356,2]
[364513938,1749124239020,-440.0,0.00018356,2]
[364513940,1749124239029,-440.0,0.00018356,2]
[364513942,1749124239039,-440.0,0.00018356,2]
[364513944,1749124239048,-400.16523736,0.00018356,2]
[364513946,1749124239057,-440.0,0.00018356,2]
[364513948,1749124239067,-440.0,0.00018356,2]
[364513950,1749124239076,-370.0,0.00018356,2]
[364513952,1749124239085,-440.0,0.00018356,2]
[364513954,1749124239096,-440.0,0.00018356,2]
[364513956,1749124239105,-440.0,0.00018356,2]
[364513958,1749124239115,-440.0,0.00018356,2]
[364513960,1749124239124,-440.0,0.00018356,2]
[364513961,1749124239134,-451.95,0.00018356,2]
[364513964,1749124239143,-440.0,0.00018356,2]
[364513966,1749124239153,-440.0,0.00018356,2]
[364513968,1749124239163,-440.0,0.00018356,2]
[364513969,1749124239172,-440.0,0.00018356,2]
[364513971,1749124239182,-440.0,0.00018356,2]
[364513973,1749124239191,-370.0,0.00018356,2]
[364513975,1749124239200,-440.0,0.00018356,2]
[364513977,1749124239213,-440.0,0.00018356,2]
[364513979,1749124239224,-440.0,0.00018356,2]
[364513981,1749124239233,-475.61,0.00018356,2]
[364513983,1749124239243,-440.0,0.00018356,2]
[364513985,1749124239252,-440.0,0.00018356,2]
[364513987,1749124239261,-440.0,0.00018356,2]
[364513989,1749124239270,-440.0,0.00018356,2]
[364513991,1749124239279,-440.0,0.00018356,2]
[364513993,1749124239288,-939.53,0.00018356,2]
[364513995,1749124239297,-440.0,0.00018356,2]
[364513997,1749124239306,-500.0,0.00018356,2]
[364513999,1749124239315,-500.0,0.00018356,2]
[364514001,1749124239324,-500.0,0.00018356,2]
[364514003,1749124239333,-500.0,0.00018356,2]
[364514005,1749124239342,-430.0,0.00018356,2]
[364514007,1749124239352,-440.0,0.00018356,2]
[364514009,1749124239361,-740.25,0.00018356,2]
[364514011,1749124239370,-440.0,0.00018356,2]
[364514013,1749124239379,-924.16,0.00018356,2]
[364514015,1749124239390,-436.58317014,0.00018356,2]
[364514017,1749124239399,-440.0,0.00018356,2]
[364514019,1749124239408,-440.0,0.00018356,2]
[364514021,1749124239418,-440.0,0.00018356,2]
[364514023,1749124239427,-494.25,0.00018356,2]
[364514025,1749124239436,-440.0,0.00018356,2]
[364514027,1749124239446,-440.0,0.00018356,2]
[364514029,1749124239456,-440.0,0.00018356,2]
[364514031,1749124239465,-382.32,0.00018356,2]
[364514033,1749124239473,-440.0,0.00018356,2]
[364514035,1749124239483,-440.0,0.00018356,2]
[364514036,1749124239492,-334.66792769,0.00018356,2]
[364514038,1749124239501,-440.0,0.00018356,2]
[364514040,1749124239511,-440.0,0.00018356,2]
[364514042,1749124239520,-1051.33,0.00018356,2]
[364514044,1749124239529,-898.8,0.00018356,2]
[364514046,1749124239538,-440.0,0.00018356,2]
[364514049,1749124239548,-440.0,0.00018356,2]
[364514051,1749124239562,-430.0,0.00018356,2]
[364514053,1749124239572,-512.23289541,0.00018356,2]
[364514055,1749124239581,-440.0,0.00018356,2]
[364514057,1749124239590,-440.0,0.00018356,2]
[364514059,1749124239601,-440.0,0.00018356,2]
[364514061,1749124239610,-430.0,0.00018356,2]
[364514063,1749124239619,-430.0,0.00018356,2]
[364514065,1749124239629,-440.0,0.00018356,2]
[364514067,1749124239643,-440.0,0.00018356,2]
[364514069,1749124239653,-440.0,0.00018356,2]
[364514071,1749124239662,-1128.69,0.00018356,2]
[364514073,1749124239672,-1125.64,0.00018356,2]
[364514075,1749124239682,-430.0,0.00018356,2]
[364514077,1749124239691,-295.60729039,0.00018356,2]
[364514079,1749124239700,-613.8,0.00018356,2]
[364514081,1749124239710,-440.0,0.00018356,2]
[364514083,1749124239719,-440.0,0.00018356,2]
[364514086,1749124239728,-390.0,0.00018356,2]
[364514088,1749124239738,-1210.1101469,0.00018383,2]
[364514090,1749124239747,-1210.1101469,0.00018624,2]
[364514092,1749124239756,-500.0,0.00018629,2]
[364514094,1749124239765,-500.0,0.00018629,2]
[364514096,1749124239775,-157.08816316,0.0001863,2]
[364514098,1749124239784,-417.89174655,0.0001863,2]
[364514100,1749124239794,-440.0,0.0001863,2]
[364514102,1749124239803,-440.0,0.0001863,2]
[364514104,1749124239813,-448.68,0.0001863,2]
[364514106,1749124239822,-440.0,0.0001863,2]
[364514108,1749124239832,-420.0,0.0001863,2]
[364514110,1749124239841,-280.35,0.0001863,2]
[364514112,1749124239851,-450.18,0.0001863,2]
[364514114,1749124239860,-440.0,0.0001863,2]
[364514116,1749124239870,-440.0,0.0001863,2]
[364514118,1749124239879,-440.0,0.0001863,2]
[364514120,1749124239889,-360.0,0.0001863,2]
[364514122,1749124239899,-360.0,0.0001863,2]
[364514124,1749124239908,-440.0,0.0001863,2]
[364514126,1749124239919,-430.0,0.0001863,2]
[364514128,1749124239928,-440.0,0.0001863,2]
[364514130,1749124239937,-440.0,0.0001863,2]
[364514132,1749124239946,-440.0,0.0001863,2]
[364514134,1749124239956,-1025.84,0.0001863,2]
[364514136,1749124239966,-440.0,0.0001863,2]
[364514139,1749124239975,-440.0,0.0001863,2]
[364514141,1749124239985,-370.0,0.0001863,2]
[364514143,1749124239994,-440.0,0.0001863,2]
[364514145,1749124240003,-380.0,0.0001863,2]
[364514147,1749124240013,-440.0,0.0001863,2]
[364514149,1749124240022,-440.0,0.0001863,2]
[364514151,1749124240031,-1162.85,0.0001863,2]
[364514153,1749124240041,-440.0,0.0001863,2]
[364514155,1749124240050,-440.0,0.0001863,2]
[364514157,1749124240059,-440.0,0.0001863,2]
[364514159,1749124240069,-440.0,0.0001863,2]
[364514161,1749124240078,-370.0,0.0001863,2]
[364514163,1749124240088,-440.0,0.0001863,2]
[364514165,1749124240101,-440.0,0.0001863,2]
[364514167,1749124240110,-316.46,0.0001863,2]
[364514169,1749124240120,-370.0,0.0001863,2]
[364514171,1749124240129,-440.0,0.0001863,2]
[364514173,1749124240139,-440.0,0.0001863,2]
[364514175,1749124240149,-440.0,0.0001863,2]
[364514177,1749124240158,-440.0,0.0001863,2]
[364514179,1749124240168,-440.0,0.0001863,2]
[364514194,1749124240302,-370.0,0.0001863,2]
[364514197,1749124240312,-440.0,0.0001863,2]
[364514199,1749124240322,-440.0,0.0001863,2]
[364514201,1749124240332,-360.0,0.0001863,2]
[364514203,1749124240341,-440.0,0.0001863,2]
[364514205,1749124240351,-440.0,0.0001863,2]
[364514207,1749124240360,-475.61,0.0001863,2]
[364514209,1749124240370,-440.0,0.0001863,2]
[364514211,1749124240379,-440.0,0.0001863,2]
[364514213,1749124240388,-370.0,0.0001863,2]
[364514215,1749124240398,-440.0,0.0001863,2]
[364514217,1749124240407,-939.53,0.0001863,2]
[364514219,1749124240417,-440.0,0.0001863,2]
[364514221,1749124240426,-440.0,0.0001863,2]
[364514223,1749124240436,-740.25,0.0001863,2]
[364514225,1749124240445,-924.16,0.0001863,2]
[364514227,1749124240454,-440.0,0.0001863,2]
[364514229,1749124240463,-440.0,0.0001863,2]
[364514231,1749124240472,-370.0,0.0001863,2]
[364514233,1749124240482,-494.25,0.0001863,2]
[364514235,1749124240490,-440.0,0.0001863,2]
[364514237,1749124240500,-440.0,0.0001863,2]
[364514239,1749124240509,-380.0,0.0001863,2]
[364514241,1749124240518,-440.0,0.0001863,2]
[364514243,1749124240528,-440.0,0.0001863,2]
[364514245,1749124240537,-440.0,0.0001863,2]
[364514247,1749124240546,-1051.33,0.0001863,2]
[364514249,1749124240557,-898.8,0.0001863,2]
[364514251,1749124240567,-448.08,0.0001863,2]
[364514253,1749124240576,-430.0,0.0001863,2]
[364514255,1749124240585,-440.0,0.0001863,2]
[364514257,1749124240594,-440.0,0.0001863,2]
[364514259,1749124240604,-211.89756893,0.0001863,2]
[364514261,1749124240614,-440.0,0.0001863,2]
[364514263,1749124240623,-1128.69,0.0001863,2]
[364514265,1749124240632,-1125.64,0.0001863,2]
[364514266,1749124240642,-613.8,0.0001863,2]
[364514268,1749124240651,-440.0,0.0001863,2]
[364514270,1749124240660,-440.0,0.0001863,2]
[364514272,1749124240669,-2877.07,0.00018775,2]
[364514274,1749124240679,-1210.1101469,0.00018866,2]
[364514277,1749124240688,-1778.69090688,0.000189,2]
[364514279,1749124240698,-522.48,0.00018903,2]
[364514281,1749124240707,-440.0,0.00018904,2]
[364514283,1749124240717,-440.0,0.00018904,2]
[364514285,1749124240727,-312.14923827,0.00018904,2]
[364514287,1749124240736,-440.0,0.00018904,2]
[364514289,1749124240745,-440.0,0.00018904,2]
[364514291,1749124240755,-390.0,0.00018904,2]
[364514292,1749124240764,-440.0,0.00018904,2]
[364514293,1749124240773,-440.0,0.00018904,2]
[364514294,1749124240782,-390.0,0.00018904,2]
[364514295,1749124240790,-456.59,0.00018904,2]
[364514296,1749124240799,-1025.84,0.00018904,2]
[364514297,1749124240809,-440.0,0.00018904,2]
[364514298,1749124240818,-370.0,0.00018904,2]
[364514299,1749124240827,-360.0,0.00018904,2]
[364514300,1749124240835,-440.0,0.00018904,2]
[364514301,1749124240844,-440.0,0.00018904,2]
[364514302,1749124240853,-1162.85,0.00018904,2]
[364514303,1749124240862,-440.0,0.00018904,2]
[364514304,1749124240871,-440.0,0.00018904,2]
[364514305,1749124240879,-440.0,0.00018904,2]
[364514306,1749124240888,-440.0,0.00018904,2]
[364514307,1749124240897,-440.0,0.00018904,2]
[364514308,1749124240906,-440.0,0.00018904,2]
[364514309,1749124240914,-440.0,0.00018904,2]
[364514310,1749124240923,-410.0,0.00018904,2]
[364514311,1749124240932,-440.0,0.00018904,2]
[364514312,1749124240941,-370.0,0.00018904,2]
[364514313,1749124240951,-440.0,0.00018904,2]
[364514314,1749124240961,-410.0,0.00018904,2]
[364514315,1749124240970,-370.0,0.00018904,2]
[364514317,1749124240989,-410.0,0.00018904,2]
[364514320,1749124241000,-440.0,0.00018904,2]
[364514322,1749124241011,-475.61,0.00018904,2]
[364514324,1749124241021,-440.0,0.00018904,2]
[364514326,1749124241031,-440.0,0.00018904,2]
[364514328,1749124241040,-440.0,0.00018904,2]
[364514330,1749124241050,-939.53,0.00018904,2]
[364514332,1749124241060,-440.0,0.00018904,2]
[364514334,1749124241070,-440.0,0.00018904,2]
[364514336,1749124241080,-740.25,0.00018904,2]
[364514338,1749124241090,-924.16,0.00018904,2]
[364514340,1749124241100,-440.0,0.00018904,2]
[364514342,1749124241110,-440.0,0.00018904,2]
[364514344,1749124241119,-494.25,0.00018904,2]
[364514346,1749124241129,-440.0,0.00018904,2]
[364514348,1749124241139,-440.0,0.00018904,2]
[364514350,1749124241148,-440.0,0.00018904,2]
[364514352,1749124241158,-440.0,0.00018904,2]
[364514354,1749124241168,-370.0,0.00018904,2]
[364514356,1749124241178,-1051.33,0.00018904,2]
[364514358,1749124241188,-898.8,0.00018904,2]
[364514360,1749124241197,-440.0,0.00018904,2]
[364514362,1749124241207,-470.0,0.00018904,2]
[364514364,1749124241216,-1128.69,0.00018904,2]
[364514366,1749124241225,-1125.64,0.00018904,2]
[364514368,1749124241235,-613.8,0.00018904,2]
[364514370,1749124241244,-440.0,0.00018904,2]
[364514372,1749124241254,-191.10992408,0.00019104,2]
[364514374,1749124241264,-1210.1101469,0.00019107,2]
[364514377,1749124241274,-325.14076542,0.00019177,2]
[364514379,1749124241283,-440.0,0.00019178,2]
[364514381,1749124241293,-380.0,0.00019178,2]
[364514383,1749124241303,-440.0,0.00019178,2]
[364514385,1749124241313,-440.0,0.00019178,2]
[364514387,1749124241322,-440.0,0.00019178,2]
[364514389,1749124241332,-440.0,0.00019178,2]
[364514391,1749124241341,-1025.84,0.00019178,2]
[364514393,1749124241350,-440.0,0.00019178,2]
[364514395,1749124241359,-440.0,0.00019178,2]
[364514397,1749124241369,-440.0,0.00019178,2]
[364514399,1749124241378,-1162.85,0.00019178,2]
[364514401,1749124241388,-440.0,0.00019178,2]
[364514403,1749124241398,-370.0,0.00019178,2]
[364514405,1749124241408,-440.0,0.00019178,2]
[364514407,1749124241417,-303.75,0.00019178,2]
[364514409,1749124241427,-440.0,0.00019178,2]
[364514411,1749124241437,-566.06,0.00019178,2]
[364514413,1749124241446,-440.0,0.00019178,2]
[364514415,1749124241456,-218.3212153,0.00019178,2]
[364514417,1749124241465,-370.0,0.00019178,2]
[364514420,1749124241476,-440.0,0.00019178,2]
[364514422,1749124241485,-475.61,0.00019178,2]
[364514424,1749124241494,-440.0,0.00019178,2]
[364514426,1749124241504,-440.0,0.00019178,2]
[364514428,1749124241514,-370.0,0.00019178,2]
[364514430,1749124241523,-939.53,0.00019178,2]
[364514432,1749124241533,-440.0,0.00019178,2]
[364514434,1749124241542,-410.0,0.00019178,2]
[364514436,1749124241552,-740.25,0.00019178,2]
[364514438,1749124241565,-924.16,0.00019178,2]
[364514440,1749124241574,-440.0,0.00019178,2]
[364514442,1749124241584,-440.0,0.00019178,2]
[364514444,1749124241593,-494.25,0.00019178,2]
[364514446,1749124241603,-440.0,0.00019178,2]
[364514448,1749124241613,-440.0,0.00019178,2]
[364514450,1749124241623,-440.0,0.00019178,2]
[364514452,1749124241632,-440.0,0.00019178,2]
[364514454,1749124241643,-1051.33,0.00019178,2]
[364514456,1749124241653,-898.8,0.00019178,2]
[364514458,1749124241663,-428.61,0.00019178,2]
[364514460,1749124241672,-1128.69,0.00019178,2]
[364514462,1749124241682,-1125.64,0.00019178,2]
[364514464,1749124241692,-613.8,0.00019178,2]
[364514466,1749124241701,-380.33360013,0.00019178,2]
[364514468,1749124241710,-303.65315243,0.00019178,2]
[364514470,1749124241720,-180.766422,0.00019178,2]
[364514472,1749124241729,-449.04791334,0.00019259,2]
[364514474,1749124241739,-1210.1101469,0.00019348,2]
[364514476,1749124241748,-390.0,0.00019452,2]
[364514478,1749124241757,-440.0,0.00019452,2]
[364514480,1749124241766,-360.0,0.00019452,2]
[364514482,1749124241775,-440.0,0.00019452,2]
[364514484,1749124241785,-440.0,0.00019452,2]
[364514486,1749124241794,-1025.84,0.00019452,2]
[364514488,1749124241803,-440.0,0.00019452,2]
[364514490,1749124241812,-440.0,0.00019452,2]
[364514492,1749124241821,-440.0,0.00019452,2]
[364514494,1749124241831,-1162.85,0.00019452,2]
[364514496,1749124241840,-440.0,0.00019452,2]
[364514498,1749124241850,-440.0,0.00019452,2]
[364514500,1749124241859,-440.0,0.00019452,2]
[364514502,1749124241868,-284.2,0.00019452,2]
[364514504,1749124241878,-440.0,0.00019452,2]
[364514506,1749124241888,-475.61,0.00019452,2]
[364514508,1749124241897,-440.0,0.00019452,2]
[364514510,1749124241907,-440.0,0.00019452,2]
[364514512,1749124241917,-939.53,0.00019452,2]
[364514514,1749124241926,-440.0,0.00019452,2]
[364514516,1749124241936,-740.25,0.00019452,2]
[364514518,1749124241946,-924.16,0.00019452,2]
[364514520,1749124241955,-440.0,0.00019452,2]
[364514522,1749124241965,-422.02,0.00019452,2]
[364514524,1749124241975,-494.25,0.00019452,2]
[364514526,1749124241985,-440.0,0.00019452,2]
[364514528,1749124241994,-440.0,0.00019452,2]
[364514530,1749124242004,-440.0,0.00019452,2]
[364514532,1749124242014,-440.0,0.00019452,2]
[364514534,1749124242023,-1051.33,0.00019452,2]
[364514537,1749124242033,-898.8,0.00019452,2]
[364514539,1749124242043,-1128.69,0.00019452,2]
[364514540,1749124242053,-1125.64,0.00019452,2]
[364514542,1749124242064,-613.8,0.00019452,2]
[364514544,1749124242074,-207.4,0.00019514,2]
[364514546,1749124242084,-1210.1101469,0.0001959,2]
[364514548,1749124242093,-160.0,0.00019596,2]
[364514550,1749124242103,-423.7637613,0.00019596,2]
[364514552,1749124242112,-160.0,0.00019596,2]
[364514554,1749124242121,-160.0,0.00019596,2]
[364514556,1749124242131,-842.5625,0.00019596,2]
[364514558,1749124242141,-160.0,0.00019596,2]
[364514560,1749124242151,-160.0,0.00019596,2]
[364514562,1749124242160,-212.94059491,0.00019596,2]
[364514565,1749124242170,-229.48950782,0.00019596,2]
[364514567,1749124242179,-160.0,0.00019596,2]
[364514568,1749124242188,-560.49,0.00019726,2]
[364514570,1749124242198,-537.88,0.00019726,2]
[364514572,1749124242207,-440.0,0.00019726,2]
[364514574,1749124242216,-1025.84,0.00019726,2]
[364514576,1749124242225,-440.0,0.00019726,2]
[364514579,1749124242235,-440.0,0.00019726,2]
[364514580,1749124242244,-440.0,0.00019726,2]
[364514582,1749124242254,-1162.85,0.00019726,2]
[364514584,1749124242263,-440.0,0.00019726,2]
[364514587,1749124242273,-440.0,0.00019726,2]
[364514589,1749124242283,-440.0,0.00019726,2]
[364514590,1749124242294,-440.0,0.00019726,2]
[364514593,1749124242304,-475.61,0.00019726,2]
[364514595,1749124242313,-440.0,0.00019726,2]
[364514597,1749124242323,-220.85737731,0.00019726,2]
[364514599,1749124242332,-939.53,0.00019726,2]
[364514601,1749124242342,-440.0,0.00019726,2]
[364514603,1749124242351,-740.25,0.00019726,2]
[364514605,1749124242361,-924.16,0.00019726,2]
[364514607,1749124242370,-440.0,0.00019726,2]
[364514609,1749124242379,-494.25,0.00019726,2]
[364514611,1749124242390,-440.0,0.00019726,2]
[364514613,1749124242400,-440.0,0.00019726,2]
[364514615,1749124242409,-440.0,0.00019726,2]
[364514617,1749124242419,-518.42531892,0.00019726,2]
[364514619,1749124242428,-1051.33,0.00019726,2]
[364514621,1749124242437,-898.8,0.00019726,2]
[364514623,1749124242446,-1128.69,0.00019726,2]
[364514625,1749124242456,-1125.64,0.00019726,2]
[364514627,1749124242466,-613.8,0.00019726,2]
[364514629,1749124242475,-162.6384244,0.00019811,2]
[364514631,1749124242485,-1210.1101469,0.00019831,2]
[364514633,1749124242495,-458.074,0.00019885,2]
[364514635,1749124242505,-159.53536824,0.000199,2]
[364514637,1749124242514,-440.0,0.0002,2]
[364514639,1749124242524,-1025.84,0.0002,2]
[364514641,1749124242533,-440.0,0.0002,2]
[364514643,1749124242542,-580.25,0.0002,2]
[364514645,1749124242552,-440.0,0.0002,2]
[364514647,1749124242564,-1162.85,0.0002,2]
[364514649,1749124242573,-370.0,0.0002,2]
[364514651,1749124242583,-440.0,0.0002,2]
[364514653,1749124242593,-440.0,0.0002,2]
[364514655,1749124242602,-440.0,0.0002,2]
[364514657,1749124242611,-475.61,0.0002,2]
[364514659,1749124242621,-440.0,0.0002,2]
[364514661,1749124242632,-939.53,0.0002,2]
[364514663,1749124242641,-440.0,0.0002,2]
[364514665,1749124242651,-740.25,0.0002,2]
[364514667,1749124242661,-924.16,0.0002,2]
[364514669,1749124242670,-440.0,0.0002,2]
[364514671,1749124242679,-494.25,0.0002,2]
[364514673,1749124242689,-440.0,0.0002,2]
[364514675,1749124242698,-440.0,0.0002,2]
[364514678,1749124242707,-440.0,0.0002,2]
[364514681,1749124242717,-1051.33,0.0002,2]
[364514683,1749124242727,-898.8,0.0002,2]
[364514685,1749124242736,-1128.69,0.0002,2]